[Event "Titled Tuesday Blitz January 03 Late 2023"]
[White "Le Goff, Ronan"]
[Black "Melikhov, Evgeny V."]
[WhiteFideId "612073"]
[BlackFideId "4122046"]
[WhiteElo "2320"]
[BlackElo "2269"]
[Result "0-1"]
[Round "07"]
[TimeControl "180+2"]
[Date "2023.01.03"]
[WhiteClock "0:00:49"]
[BlackClock "0:00:08"]

1. d4 {[%clk 0:03:00]}  Nf6 {[%clk 0:02:59]} 2. c4 {[%clk 0:02:59]}  e6 {[%clk 0:02:59]} 3. Nc3 {[%clk 0:02:59]}  Bb4 {[%clk 0:02:59]} 4. Nf3 {[%clk 0:02:57]}  d5 {[%clk 0:02:58]} 5. cxd5 {[%clk 0:02:54]}  exd5 {[%clk 0:02:58]} 6. Bg5 {[%clk 0:02:53]}  h6 {[%clk 0:02:58]} 7. Bf4 {[%clk 0:02:54]}  O-O {[%clk 0:02:54]} 8. Rc1 {[%clk 0:02:52]}  c6 {[%clk 0:02:53]} 9. e3 {[%clk 0:02:51]}  Bd6 {[%clk 0:02:50]} 10. Bg3 {[%clk 0:02:50]}  Re8 {[%clk 0:02:47]} 11. Bd3 {[%clk 0:02:48]}  Ne4 {[%clk 0:02:46]} 12. Bxe4 {[%clk 0:02:39]}  dxe4 {[%clk 0:02:46]} 13. Nd2 {[%clk 0:02:39]}  Bxg3 {[%clk 0:02:39]} 14. hxg3 {[%clk 0:02:38]}  f5 {[%clk 0:02:34]} 15. g4 {[%clk 0:02:37]}  fxg4 {[%clk 0:02:27]} 16. Ncxe4 {[%clk 0:02:33]}  Nd7 {[%clk 0:02:22]} 17. Qxg4 {[%clk 0:02:22]}  Nf6 {[%clk 0:02:22]} 18. Qg6 {[%clk 0:02:16]}  Nxe4 {[%clk 0:02:08]} 19. Nxe4 {[%clk 0:02:17]}  Re6 {[%clk 0:02:08]} 20. Qf5 {[%clk 0:02:08]}  Qe8 {[%clk 0:02:04]} 21. Rh4 {[%clk 0:02:01]}  Rg6 {[%clk 0:01:41]} 22. Qf3 {[%clk 0:01:55]}  Be6 {[%clk 0:01:35]} 23. Nc3 {[%clk 0:01:48]}  Qd7 {[%clk 0:01:29]} 24. g3 {[%clk 0:01:38]}  Rf8 {[%clk 0:01:27]} 25. Rf4 {[%clk 0:01:37]}  Rgf6 {[%clk 0:01:24]} 26. Rxf6 {[%clk 0:01:37]}  Rxf6 {[%clk 0:01:24]} 27. Qe2 {[%clk 0:01:37]}  Bg4 {[%clk 0:01:21]} 28. Qc4+ {[%clk 0:01:34]}  Kh8 {[%clk 0:01:19]} 29. Ne4 {[%clk 0:01:32]}  Rf8 {[%clk 0:01:13]} 30. Nc5 {[%clk 0:01:31]}  Qf5 {[%clk 0:01:11]} 31. Qc2 {[%clk 0:01:27]}  Qh5 {[%clk 0:01:10]} 32. Nd3 {[%clk 0:01:24]}  Bf5 {[%clk 0:00:55]} 33. Nf4 {[%clk 0:01:15]}  Qh1+ {[%clk 0:00:39]} 34. Kd2 {[%clk 0:01:12]}  Qf3 {[%clk 0:00:37]} 35. Qc5 {[%clk 0:01:12]}  Qxf2+ {[%clk 0:00:34]} 36. Ne2 {[%clk 0:01:09]}  Bg4 {[%clk 0:00:30]} 37. Re1 {[%clk 0:01:08]}  Re8 {[%clk 0:00:29]} 38. Qc3 {[%clk 0:01:01]}  Bxe2 {[%clk 0:00:26]} 39. Rxe2 {[%clk 0:01:02]}  Qxg3 {[%clk 0:00:26]} 40. Qb4 {[%clk 0:01:00]}  b6 {[%clk 0:00:23]} 41. Qc4 {[%clk 0:00:59]}  Qd6 {[%clk 0:00:22]} 42. Kc2 {[%clk 0:00:58]}  c5 {[%clk 0:00:21]} 43. Rd2 {[%clk 0:00:55]}  cxd4 {[%clk 0:00:20]} 44. exd4 {[%clk 0:00:54]}  Re7 {[%clk 0:00:19]} 45. Kb3 {[%clk 0:00:53]}  Rc7 {[%clk 0:00:17]} 46. Qb4 {[%clk 0:00:51]}  Qd5+ {[%clk 0:00:15]} 47. Ka3 {[%clk 0:00:51]}  Rc4 {[%clk 0:00:13]} 48. Qf8+ {[%clk 0:00:50]}  Kh7 {[%clk 0:00:13]} 49. b3 {[%clk 0:00:50]}  Rxd4 {[%clk 0:00:12]} 50. Rxd4 {[%clk 0:00:48]}  Qxd4 {[%clk 0:00:12]} 51. Qf5+ {[%clk 0:00:49]}  Kg8 {[%clk 0:00:12]} 52. Qe6+ {[%clk 0:00:49]}  Kf8 {[%clk 0:00:12]} 53. Qc8+ {[%clk 0:00:47]}  Ke7 {[%clk 0:00:11]} 54. Qc7+ {[%clk 0:00:46]}  Qd7 {[%clk 0:00:11]} 55. Qe5+ {[%clk 0:00:46]}  Kf7 {[%clk 0:00:11]} 56. Qf4+ {[%clk 0:00:46]}  Kg8 {[%clk 0:00:10]} 57. Qb8+ {[%clk 0:00:45]}  Kh7 {[%clk 0:00:10]} 58. Qf4 {[%clk 0:00:44]}  Qe7+ {[%clk 0:00:10]} 59. Kb2 {[%clk 0:00:43]}  Qf6+ {[%clk 0:00:09]} 60. Qxf6 {[%clk 0:00:43]}  gxf6 {[%clk 0:00:10]} 61. Kc3 {[%clk 0:00:44]}  h5 {[%clk 0:00:10]} 62. Kd4 {[%clk 0:00:44]}  h4 {[%clk 0:00:10]} 63. Ke4 {[%clk 0:00:45]}  Kg6 {[%clk 0:00:10]} 64. Kf3 {[%clk 0:00:46]}  Kg5 {[%clk 0:00:10]} 65. Kg2 {[%clk 0:00:46]}  Kg4 {[%clk 0:00:11]} 66. a4 {[%clk 0:00:46]}  f5 {[%clk 0:00:10]} 67. b4 {[%clk 0:00:47]}  f4 {[%clk 0:00:10]} 68. a5 {[%clk 0:00:48]}  f3+ {[%clk 0:00:10]} 69. Kf2 {[%clk 0:00:48]}  bxa5 {[%clk 0:00:10]} 70. bxa5 {[%clk 0:00:48]}  Kf4 {[%clk 0:00:11]} 71. a6 {[%clk 0:00:48]}  h3 {[%clk 0:00:10]} 72. Kg1 {[%clk 0:00:49]}  Ke3 {[%clk 0:00:10]} 73. Kh2 {[%clk 0:00:48]}  f2 {[%clk 0:00:09]} 74. Kg3 {[%clk 0:00:49]}  f1=Q {[%clk 0:00:09]} 75. Kh2 {[%clk 0:00:49]}  Qg2# {[%clk 0:00:08]} 0-1


[Site "https://www.chess.com"]

[Event "Titled Tuesday Blitz January 03 Late 2023"]
[White "Mazibuko, Khanya"]
[Black "Egorov, Evgeny"]
[WhiteFideId "14321041"]
[BlackFideId "13700421"]
[WhiteElo "1913"]
[BlackElo "2294"]
[Result "0-1"]
[Round "07"]
[TimeControl "180+2"]
[Date "2023.01.03"]
[WhiteClock "0:00:06"]
[BlackClock "0:01:07"]

1. d4 {[%clk 0:03:00]}  d5 {[%clk 0:02:58]} 2. c4 {[%clk 0:03:00]}  Nc6 {[%clk 0:02:58]} 3. Nc3 {[%clk 0:03:00]}  dxc4 {[%clk 0:02:57]} 4. d5 {[%clk 0:03:01]}  Na5 {[%clk 0:02:56]} 5. Qa4+ {[%clk 0:02:58]}  c6 {[%clk 0:02:55]} 6. b4 {[%clk 0:02:59]}  b5 {[%clk 0:02:54]} 7. Qxa5 {[%clk 0:02:55]}  Qxa5 {[%clk 0:02:54]} 8. bxa5 {[%clk 0:02:55]}  b4 {[%clk 0:02:55]} 9. Nd1 {[%clk 0:02:54]}  cxd5 {[%clk 0:02:55]} 10. e4 {[%clk 0:02:55]}  e6 {[%clk 0:02:55]} 11. exd5 {[%clk 0:02:45]}  exd5 {[%clk 0:02:54]} 12. Nf3 {[%clk 0:02:45]}  Nf6 {[%clk 0:02:54]} 13. Be3 {[%clk 0:02:35]}  Be6 {[%clk 0:02:53]} 14. g3 {[%clk 0:02:31]}  Kd7 {[%clk 0:02:53]} 15. Bg2 {[%clk 0:02:28]}  Bd6 {[%clk 0:02:51]} 16. Bd4 {[%clk 0:02:26]}  Rhb8 {[%clk 0:02:49]} 17. Ne3 {[%clk 0:02:26]}  Rb5 {[%clk 0:02:47]} 18. O-O {[%clk 0:02:25]}  Rxa5 {[%clk 0:02:45]} 19. Rfd1 {[%clk 0:02:20]}  Rc8 {[%clk 0:02:44]} 20. Ng5 {[%clk 0:02:20]}  h6 {[%clk 0:02:39]} 21. Bxf6 {[%clk 0:02:11]}  gxf6 {[%clk 0:02:37]} 22. Nf3 {[%clk 0:01:50]}  Ke7 {[%clk 0:02:31]} 23. Nh4 {[%clk 0:01:48]}  Be5 {[%clk 0:02:27]} 24. Rab1 {[%clk 0:01:42]}  d4 {[%clk 0:02:17]} 25. Nef5+ {[%clk 0:01:39]}  Bxf5 {[%clk 0:02:15]} 26. Nxf5+ {[%clk 0:01:40]}  Ke6 {[%clk 0:02:15]} 27. Bh3 {[%clk 0:01:35]}  Kd5 {[%clk 0:02:09]} 28. Ne7+ {[%clk 0:01:33]}  Kc5 {[%clk 0:02:09]} 29. Bxc8 {[%clk 0:01:27]}  Rxa2 {[%clk 0:02:08]} 30. f4 {[%clk 0:01:04]}  Bc7 {[%clk 0:02:05]} 31. Rxb4 {[%clk 0:00:59]}  Kxb4 {[%clk 0:02:00]} 32. Nd5+ {[%clk 0:00:59]}  Kb3 {[%clk 0:01:56]} 33. Nxc7 {[%clk 0:00:58]}  d3 {[%clk 0:01:56]} 34. Bb7 {[%clk 0:00:45]}  Kc2 {[%clk 0:01:54]} 35. Rf1 {[%clk 0:00:42]}  d2 {[%clk 0:01:52]} 36. Nd5 {[%clk 0:00:41]}  Rb2 {[%clk 0:01:46]} 37. Ba6 {[%clk 0:00:38]}  c3 {[%clk 0:01:41]} 38. Ne3+ {[%clk 0:00:37]}  Kb3 {[%clk 0:01:40]} 39. Bd3 {[%clk 0:00:37]}  a5 {[%clk 0:01:37]} 40. Bc4+ {[%clk 0:00:24]}  Kb4 {[%clk 0:01:33]} 41. Bxf7 {[%clk 0:00:23]}  a4 {[%clk 0:01:27]} 42. Nd5+ {[%clk 0:00:21]}  Kb3 {[%clk 0:01:24]} 43. Ne3+ {[%clk 0:00:19]}  Kb4 {[%clk 0:01:22]} 44. Nd5+ {[%clk 0:00:19]}  Kc4 {[%clk 0:01:21]} 45. Nb6+ {[%clk 0:00:16]}  Kb5 {[%clk 0:01:17]} 46. Nd5 {[%clk 0:00:16]}  c2 {[%clk 0:01:16]} 47. Be8+ {[%clk 0:00:10]}  Kc5 {[%clk 0:01:11]} 48. Bxa4 {[%clk 0:00:06]}  c1=Q {[%clk 0:01:07]} 0-1


[Site "https://www.chess.com"]

[Event "Titled Tuesday Blitz January 03 Late 2023"]
[White "Roman, Rodrigo"]
[Black "Carbone, Diego"]
[WhiteFideId "3701220"]
[BlackFideId "3002179"]
[WhiteElo "2058"]
[BlackElo "2336"]
[Result "0-1"]
[Round "07"]
[TimeControl "180+2"]
[Date "2023.01.03"]
[WhiteClock "0:00:03"]
[BlackClock "0:00:06"]

1. e4 {[%clk 0:02:49]}  c5 {[%clk 0:02:58]} 2. Nf3 {[%clk 0:02:48]}  e6 {[%clk 0:02:57]} 3. d4 {[%clk 0:02:49]}  cxd4 {[%clk 0:02:58]} 4. Nxd4 {[%clk 0:02:49]}  Nc6 {[%clk 0:02:58]} 5. Nc3 {[%clk 0:02:50]}  Qc7 {[%clk 0:02:58]} 6. Be2 {[%clk 0:02:50]}  a6 {[%clk 0:02:59]} 7. Be3 {[%clk 0:02:51]}  Nf6 {[%clk 0:02:59]} 8. O-O {[%clk 0:02:51]}  Bb4 {[%clk 0:03:00]} 9. Nxc6 {[%clk 0:02:51]}  bxc6 {[%clk 0:02:58]} 10. Qd4 {[%clk 0:02:52]}  c5 {[%clk 0:02:58]} 11. Qc4 {[%clk 0:02:53]}  O-O {[%clk 0:02:52]} 12. a3 {[%clk 0:02:36]}  Bxc3 {[%clk 0:02:29]} 13. bxc3 {[%clk 0:02:37]}  Bb7 {[%clk 0:02:29]} 14. Qxc5 {[%clk 0:02:16]}  Qxc5 {[%clk 0:02:21]} 15. Bxc5 {[%clk 0:02:16]}  Rfc8 {[%clk 0:02:22]} 16. Bd4 {[%clk 0:02:16]}  Bxe4 {[%clk 0:02:01]} 17. Bd3 {[%clk 0:02:06]}  Bxd3 {[%clk 0:02:01]} 18. cxd3 {[%clk 0:02:07]}  Nd5 {[%clk 0:02:01]} 19. c4 {[%clk 0:02:04]}  Nf4 {[%clk 0:02:01]} 20. Be3 {[%clk 0:02:01]}  Nxd3 {[%clk 0:01:58]} 21. Rfd1 {[%clk 0:02:01]}  Ne5 {[%clk 0:01:57]} 22. c5 {[%clk 0:01:57]}  Ng4 {[%clk 0:01:34]} 23. Bf4 {[%clk 0:01:48]}  Rxc5 {[%clk 0:01:31]} 24. Rxd7 {[%clk 0:01:48]}  h5 {[%clk 0:01:15]} 25. Rb1 {[%clk 0:01:40]}  Nf6 {[%clk 0:01:13]} 26. Rdb7 {[%clk 0:01:30]}  Nd5 {[%clk 0:01:10]} 27. Bd6 {[%clk 0:01:25]}  Rc2 {[%clk 0:01:05]} 28. h3 {[%clk 0:01:10]}  Rac8 {[%clk 0:01:00]} 29. Ra7 {[%clk 0:00:51]}  R8c6 {[%clk 0:00:53]} 30. Rb8+ {[%clk 0:00:29]}  Kh7 {[%clk 0:00:53]} 31. Be5 {[%clk 0:00:24]}  Kg6 {[%clk 0:00:48]} 32. Rbb7 {[%clk 0:00:20]}  f6 {[%clk 0:00:27]} 33. Rxg7+ {[%clk 0:00:19]}  Kf5 {[%clk 0:00:27]} 34. Bg3 {[%clk 0:00:14]}  R2c3 {[%clk 0:00:22]} 35. a4 {[%clk 0:00:11]}  R3c4 {[%clk 0:00:21]} 36. Rh7 {[%clk 0:00:10]}  Rxa4 {[%clk 0:00:17]} 37. Rag7 {[%clk 0:00:08]}  Ra1+ {[%clk 0:00:14]} 38. Kh2 {[%clk 0:00:08]}  Ke4 {[%clk 0:00:13]} 39. Rxh5 {[%clk 0:00:07]}  f5 {[%clk 0:00:13]} 40. Rh4+ {[%clk 0:00:06]}  Kd3 {[%clk 0:00:13]} 41. Be5 {[%clk 0:00:05]}  Re1 {[%clk 0:00:10]} 42. f4 {[%clk 0:00:03]}  Re4 {[%clk 0:00:10]} 43. Ra7 {[%clk 0:00:03]}  Ne3 {[%clk 0:00:08]} 44. Rh8 {[%clk 0:00:03]}  Nc4 {[%clk 0:00:09]} 45. Rd8+ {[%clk 0:00:04]}  Ke2 {[%clk 0:00:09]} 46. Bb8 {[%clk 0:00:04]}  Ne3 {[%clk 0:00:06]} 47. Rad7 {[%clk 0:00:03]}  Kf1 {[%clk 0:00:06]} 48. Rd2 {[%clk 0:00:03]}  Rc1 {[%clk 0:00:06]} 49. Be5 {[%clk 0:00:03]}  Nc4 {[%clk 0:00:05]} 50. R2d4 {[%clk 0:00:02]}  Nxe5 {[%clk 0:00:04]} 51. Rxe4 {[%clk 0:00:01]}  fxe4 {[%clk 0:00:05]} 52. fxe5 {[%clk 0:00:02]}  e3 {[%clk 0:00:05]} 53. Rd6 {[%clk 0:00:03]}  e2 {[%clk 0:00:06]} 54. Rxe6 {[%clk 0:00:02]}  e1=Q {[%clk 0:00:06]} 55. Rf6+ {[%clk 0:00:03]}  Ke2 {[%clk 0:00:06]} 0-1


[Site "https://www.chess.com"]

[Event "Titled Tuesday Blitz January 03 Late 2023"]
[White "Almagro Mazariegos, Sebastian"]
[Black "Bochnicka, Vladimir"]
[WhiteFideId "2221640"]
[BlackFideId "14943450"]
[WhiteElo "2280"]
[BlackElo "2327"]
[Result "1-0"]
[Round "07"]
[TimeControl "180+2"]
[Date "2023.01.03"]
[WhiteClock "0:00:08"]
[BlackClock "0:00:12"]

1. e4 {[%clk 0:03:00]}  c5 {[%clk 0:02:57]} 2. Nf3 {[%clk 0:03:00]}  Nc6 {[%clk 0:02:58]} 3. d4 {[%clk 0:03:01]}  cxd4 {[%clk 0:02:59]} 4. Nxd4 {[%clk 0:03:01]}  Nf6 {[%clk 0:02:59]} 5. Nc3 {[%clk 0:03:01]}  e5 {[%clk 0:02:59]} 6. Ndb5 {[%clk 0:03:01]}  d6 {[%clk 0:02:59]} 7. Bg5 {[%clk 0:03:00]}  a6 {[%clk 0:02:59]} 8. Na3 {[%clk 0:03:00]}  b5 {[%clk 0:03:00]} 9. Nd5 {[%clk 0:03:01]}  Be7 {[%clk 0:03:00]} 10. Bxf6 {[%clk 0:03:01]}  Bxf6 {[%clk 0:03:01]} 11. c4 {[%clk 0:03:01]}  b4 {[%clk 0:03:01]} 12. Nc2 {[%clk 0:03:02]}  a5 {[%clk 0:03:02]} 13. g3 {[%clk 0:03:02]}  Bg5 {[%clk 0:02:59]} 14. Bg2 {[%clk 0:03:02]}  O-O {[%clk 0:02:57]} 15. O-O {[%clk 0:03:02]}  Rb8 {[%clk 0:02:54]} 16. b3 {[%clk 0:03:02]}  Kh8 {[%clk 0:02:34]} 17. Qd3 {[%clk 0:02:59]}  f5 {[%clk 0:02:31]} 18. exf5 {[%clk 0:02:59]}  Bxf5 {[%clk 0:02:31]} 19. Be4 {[%clk 0:02:59]}  g6 {[%clk 0:02:06]} 20. Rad1 {[%clk 0:02:51]}  Qd7 {[%clk 0:01:56]} 21. Nde3 {[%clk 0:02:38]}  Bh3 {[%clk 0:01:30]} 22. Bg2 {[%clk 0:02:18]}  Bxg2 {[%clk 0:01:20]} 23. Kxg2 {[%clk 0:02:19]}  Rbd8 {[%clk 0:01:11]} 24. Qd5 {[%clk 0:02:00]}  Ne7 {[%clk 0:00:55]} 25. Qxa5 {[%clk 0:01:53]}  Rb8 {[%clk 0:00:18]} 26. Qxe5+ {[%clk 0:01:42]}  Bf6 {[%clk 0:00:16]} 27. Qxd6 {[%clk 0:01:36]}  Qb7+ {[%clk 0:00:14]} 28. Nd5 {[%clk 0:01:35]}  Rbd8 {[%clk 0:00:12]} 29. Qe6 {[%clk 0:01:31]}  Nxd5 {[%clk 0:00:07]} 30. Rxd5 {[%clk 0:01:29]}  Bg7 {[%clk 0:00:07]} 31. Ne3 {[%clk 0:01:24]}  Rde8 {[%clk 0:00:06]} 32. Qd6 {[%clk 0:01:03]}  Qf7 {[%clk 0:00:06]} 33. Qf4 {[%clk 0:00:57]}  Qa7 {[%clk 0:00:06]} 34. Qg5 {[%clk 0:00:37]}  Qxa2 {[%clk 0:00:06]} 35. Rd3 {[%clk 0:00:26]}  Re5 {[%clk 0:00:05]} 36. Qg4 {[%clk 0:00:20]}  Qa8+ {[%clk 0:00:06]} 37. Nd5 {[%clk 0:00:18]}  Qe8 {[%clk 0:00:06]} 38. Rf3 {[%clk 0:00:16]}  Ref5 {[%clk 0:00:04]} 39. Rxf5 {[%clk 0:00:15]}  Rxf5 {[%clk 0:00:05]} 40. Qd1 {[%clk 0:00:14]}  Qe4+ {[%clk 0:00:03]} 41. f3 {[%clk 0:00:13]}  Qe5 {[%clk 0:00:02]} 42. Re1 {[%clk 0:00:13]}  Qb2+ {[%clk 0:00:03]} 43. Re2 {[%clk 0:00:13]}  Qf6 {[%clk 0:00:02]} 44. Re8+ {[%clk 0:00:12]}  Bf8 {[%clk 0:00:02]} 45. Qe2 {[%clk 0:00:11]}  Qd6 {[%clk 0:00:01]} 46. Qe4 {[%clk 0:00:05]}  Kg7 {[%clk 0:00:01]} 47. Rc8 {[%clk 0:00:04]}  Re5 {[%clk 0:00:02]} 48. Rc7+ {[%clk 0:00:04]}  Qxc7 {[%clk 0:00:02]} 49. Nxc7 {[%clk 0:00:03]}  Rxe4 {[%clk 0:00:03]} 50. fxe4 {[%clk 0:00:04]}  Be7 {[%clk 0:00:02]} 51. Nd5 {[%clk 0:00:04]}  Bd6 {[%clk 0:00:03]} 52. Kf3 {[%clk 0:00:04]}  Be5 {[%clk 0:00:04]} 53. Nxb4 {[%clk 0:00:03]}  h5 {[%clk 0:00:04]} 54. Nd3 {[%clk 0:00:04]}  g5 {[%clk 0:00:05]} 55. h3 {[%clk 0:00:04]}  Kf6 {[%clk 0:00:06]} 56. g4 {[%clk 0:00:05]}  Bd6 {[%clk 0:00:06]} 57. c5 {[%clk 0:00:05]}  Bc7 {[%clk 0:00:06]} 58. gxh5 {[%clk 0:00:06]}  g4+ {[%clk 0:00:07]} 59. hxg4 {[%clk 0:00:05]}  Kg5 {[%clk 0:00:07]} 60. b4 {[%clk 0:00:05]}  Bb8 {[%clk 0:00:08]} 61. b5 {[%clk 0:00:06]}  Bc7 {[%clk 0:00:09]} 62. b6 {[%clk 0:00:06]}  Bb8 {[%clk 0:00:10]} 63. c6 {[%clk 0:00:07]}  Bd6 {[%clk 0:00:10]} 64. c7 {[%clk 0:00:08]}  Bf4 {[%clk 0:00:10]} 65. b7 {[%clk 0:00:08]}  Kh4 {[%clk 0:00:11]} 66. c8=Q {[%clk 0:00:08]}  Kh3 {[%clk 0:00:12]} 67. b8=Q {[%clk 0:00:08]}  Bg5 {[%clk 0:00:13]} 68. Qf5 {[%clk 0:00:08]}  Bh4 {[%clk 0:00:11]} 69. Qb2 {[%clk 0:00:09]}  Bf2 {[%clk 0:00:11]} 70. Qe2 {[%clk 0:00:08]}  Kh2 {[%clk 0:00:11]} 71. Qxf2+ {[%clk 0:00:08]}  Kh1 {[%clk 0:00:12]} 72. Qg2# {[%clk 0:00:08]} 1-0


[Site "https://www.chess.com"]

[Event "Titled Tuesday Blitz January 03 Late 2023"]
[White "Balint, Vilmos"]
[Black "Silva, Miguel Antonio Neto"]
[WhiteFideId "718050"]
[BlackFideId "1911929"]
[WhiteElo "2169"]
[BlackElo "2204"]
[Result "1-0"]
[Round "07"]
[TimeControl "180+2"]
[Date "2023.01.03"]
[WhiteClock "0:00:50"]
[BlackClock "0:00:13"]

1. e4 {[%clk 0:03:00]}  e6 {[%clk 0:02:56]} 2. d4 {[%clk 0:03:00]}  d5 {[%clk 0:02:56]} 3. Nc3 {[%clk 0:03:01]}  Bb4 {[%clk 0:02:55]} 4. exd5 {[%clk 0:03:01]}  exd5 {[%clk 0:02:54]} 5. Bd3 {[%clk 0:03:02]}  Nf6 {[%clk 0:02:50]} 6. Ne2 {[%clk 0:03:02]}  O-O {[%clk 0:02:43]} 7. O-O {[%clk 0:03:02]}  c5 {[%clk 0:02:42]} 8. dxc5 {[%clk 0:02:58]}  Nc6 {[%clk 0:02:41]} 9. Bg5 {[%clk 0:02:55]}  Bxc5 {[%clk 0:02:34]} 10. Nxd5 {[%clk 0:02:48]}  Qxd5 {[%clk 0:02:09]} 11. Bxf6 {[%clk 0:02:47]}  Qh5 {[%clk 0:02:02]} 12. Bc3 {[%clk 0:02:42]}  Bg4 {[%clk 0:01:58]} 13. Qd2 {[%clk 0:02:38]}  Rad8 {[%clk 0:01:56]} 14. Ng3 {[%clk 0:02:36]}  Qh4 {[%clk 0:01:50]} 15. Qf4 {[%clk 0:02:21]}  Bd6 {[%clk 0:01:35]} 16. Qe4 {[%clk 0:02:19]}  Rfe8 {[%clk 0:01:26]} 17. Qa4 {[%clk 0:02:19]}  Be5 {[%clk 0:01:02]} 18. f3 {[%clk 0:02:01]}  Bd4+ {[%clk 0:00:52]} 19. Bxd4 {[%clk 0:01:58]}  Rxd4 {[%clk 0:00:51]} 20. Rae1 {[%clk 0:01:45]}  Bd7 {[%clk 0:00:40]} 21. Rxe8+ {[%clk 0:01:33]}  Bxe8 {[%clk 0:00:39]} 22. Qb5 {[%clk 0:01:28]}  Rb4 {[%clk 0:00:26]} 23. Qf5 {[%clk 0:01:23]}  Qd4+ {[%clk 0:00:16]} 24. Kh1 {[%clk 0:01:23]}  g6 {[%clk 0:00:16]} 25. Qc8 {[%clk 0:01:22]}  Qd8 {[%clk 0:00:16]} 26. Qxd8 {[%clk 0:01:18]}  Nxd8 {[%clk 0:00:17]} 27. b3 {[%clk 0:01:19]}  Bc6 {[%clk 0:00:18]} 28. Re1 {[%clk 0:01:18]}  Ne6 {[%clk 0:00:18]} 29. Ne4 {[%clk 0:01:17]}  Bxe4 {[%clk 0:00:17]} 30. Bxe4 {[%clk 0:01:18]}  Nc5 {[%clk 0:00:18]} 31. Bd5 {[%clk 0:01:17]}  Kf8 {[%clk 0:00:18]} 32. Kg1 {[%clk 0:01:17]}  Rd4 {[%clk 0:00:18]} 33. c4 {[%clk 0:01:17]}  Rd2 {[%clk 0:00:18]} 34. b4 {[%clk 0:01:17]}  Ne6 {[%clk 0:00:16]} 35. Bxe6 {[%clk 0:01:04]}  fxe6 {[%clk 0:00:15]} 36. Rxe6 {[%clk 0:01:05]}  Rxa2 {[%clk 0:00:15]} 37. Re5 {[%clk 0:01:01]}  Rc2 {[%clk 0:00:15]} 38. Rb5 {[%clk 0:01:01]}  b6 {[%clk 0:00:15]} 39. c5 {[%clk 0:01:01]}  bxc5 {[%clk 0:00:16]} 40. bxc5 {[%clk 0:01:01]}  a6 {[%clk 0:00:14]} 41. Ra5 {[%clk 0:01:00]}  Kf7 {[%clk 0:00:14]} 42. h4 {[%clk 0:01:00]}  Kf6 {[%clk 0:00:13]} 43. Rxa6+ {[%clk 0:01:00]}  Kf5 {[%clk 0:00:13]} 44. Ra5 {[%clk 0:01:00]}  Kf4 {[%clk 0:00:13]} 45. Kh2 {[%clk 0:01:01]}  h6 {[%clk 0:00:13]} 46. Ra6 {[%clk 0:01:00]}  Kf5 {[%clk 0:00:13]} 47. Rc6 {[%clk 0:00:57]}  g5 {[%clk 0:00:13]} 48. h5 {[%clk 0:00:57]}  g4 {[%clk 0:00:13]} 49. Kg3 {[%clk 0:00:53]}  gxf3 {[%clk 0:00:13]} 50. gxf3 {[%clk 0:00:53]}  Kg5 {[%clk 0:00:14]} 51. Rc8 {[%clk 0:00:51]}  Kxh5 {[%clk 0:00:14]} 52. c6 {[%clk 0:00:52]}  Kg6 {[%clk 0:00:13]} 53. c7 {[%clk 0:00:49]}  Kg7 {[%clk 0:00:14]} 54. f4 {[%clk 0:00:50]}  Rc4 {[%clk 0:00:13]} 55. f5 {[%clk 0:00:50]}  Rc5 {[%clk 0:00:13]} 56. f6+ {[%clk 0:00:50]}  Kxf6 {[%clk 0:00:13]} 57. Rf8+ {[%clk 0:00:49]}  Kg7 {[%clk 0:00:13]} 58. c8=Q {[%clk 0:00:50]} 1-0


[Site "https://www.chess.com"]

[Event "Titled Tuesday Blitz January 03 Late 2023"]
[White "Pace, Christopher"]
[Black "Ibadov, Dashgyn"]
[WhiteFideId "2610167"]
[BlackFideId "24107514"]
[WhiteElo "2053"]
[BlackElo "2391"]
[Result "0-1"]
[Round "07"]
[TimeControl "180+2"]
[Date "2023.01.03"]
[WhiteClock "0:00:01"]
[BlackClock "0:00:09"]

1. e4 {[%clk 0:03:00]}  e6 {[%clk 0:02:58]} 2. d3 {[%clk 0:02:59]}  d5 {[%clk 0:02:59]} 3. Nd2 {[%clk 0:02:59]}  Nf6 {[%clk 0:02:58]} 4. Ngf3 {[%clk 0:02:55]}  c5 {[%clk 0:02:59]} 5. g3 {[%clk 0:02:55]}  Nc6 {[%clk 0:02:59]} 6. Bg2 {[%clk 0:02:55]}  g6 {[%clk 0:03:00]} 7. O-O {[%clk 0:02:55]}  Bg7 {[%clk 0:03:01]} 8. Re1 {[%clk 0:02:49]}  O-O {[%clk 0:03:01]} 9. c3 {[%clk 0:02:25]}  a5 {[%clk 0:03:01]} 10. Qc2 {[%clk 0:02:10]}  a4 {[%clk 0:03:00]} 11. h3 {[%clk 0:01:58]}  b5 {[%clk 0:02:58]} 12. e5 {[%clk 0:01:35]}  Nd7 {[%clk 0:02:56]} 13. d4 {[%clk 0:01:35]}  cxd4 {[%clk 0:02:22]} 14. cxd4 {[%clk 0:01:35]}  Bb7 {[%clk 0:02:19]} 15. Nf1 {[%clk 0:01:24]}  Rc8 {[%clk 0:02:18]} 16. Qd2 {[%clk 0:01:18]}  Qe7 {[%clk 0:02:03]} 17. N1h2 {[%clk 0:01:14]}  Nb4 {[%clk 0:01:59]} 18. Rf1 {[%clk 0:00:59]}  Rc2 {[%clk 0:01:48]} 19. Qd1 {[%clk 0:00:58]}  Rfc8 {[%clk 0:01:42]} 20. a3 {[%clk 0:00:57]}  Na6 {[%clk 0:01:40]} 21. Qd3 {[%clk 0:00:52]}  b4 {[%clk 0:01:34]} 22. Bg5 {[%clk 0:00:50]}  Qe8 {[%clk 0:01:14]} 23. Ng4 {[%clk 0:00:49]}  Rxb2 {[%clk 0:00:58]} 24. axb4 {[%clk 0:00:28]}  Nxb4 {[%clk 0:00:52]} 25. Qa3 {[%clk 0:00:28]}  Rcc2 {[%clk 0:00:36]} 26. Ne3 {[%clk 0:00:26]}  Re2 {[%clk 0:00:30]} 27. Qxa4 {[%clk 0:00:24]}  Bc6 {[%clk 0:00:28]} 28. Qa7 {[%clk 0:00:22]}  h6 {[%clk 0:00:25]} 29. Bf6 {[%clk 0:00:18]}  Nxf6 {[%clk 0:00:26]} 30. exf6 {[%clk 0:00:18]}  Bxf6 {[%clk 0:00:27]} 31. Ng4 {[%clk 0:00:17]}  Bg7 {[%clk 0:00:25]} 32. Nfe5 {[%clk 0:00:17]}  h5 {[%clk 0:00:16]} 33. Ne3 {[%clk 0:00:05]}  Bxe5 {[%clk 0:00:16]} 34. dxe5 {[%clk 0:00:05]}  Kg7 {[%clk 0:00:14]} 35. g4 {[%clk 0:00:04]}  hxg4 {[%clk 0:00:14]} 36. Nxg4 {[%clk 0:00:04]}  d4 {[%clk 0:00:11]} 37. Qxd4 {[%clk 0:00:04]}  Bxg2 {[%clk 0:00:11]} 38. Kxg2 {[%clk 0:00:04]}  Qc6+ {[%clk 0:00:10]} 39. Kg1 {[%clk 0:00:03]}  Qf3 {[%clk 0:00:10]} 40. Kh2 {[%clk 0:00:01]}  Nd5 {[%clk 0:00:09]} 0-1


[Site "https://www.chess.com"]

[Event "Titled Tuesday Blitz January 03 Late 2023"]
[White "Torres Dominguez, David"]
[Black "Papayan, Oleg"]
[WhiteFideId "2220857"]
[BlackFideId "4193911"]
[WhiteElo "1994"]
[BlackElo "2253"]
[Result "1-0"]
[Round "07"]
[TimeControl "180+2"]
[Date "2023.01.03"]
[WhiteClock "0:02:09"]
[BlackClock "0:00:33"]

1. e4 {[%clk 0:02:56]}  e5 {[%clk 0:02:57]} 2. Bc4 {[%clk 0:02:55]}  Nf6 {[%clk 0:02:57]} 3. Nc3 {[%clk 0:02:56]}  Nxe4 {[%clk 0:02:57]} 4. Qh5 {[%clk 0:02:54]}  Nd6 {[%clk 0:02:57]} 5. Qxe5+ {[%clk 0:02:54]}  Qe7 {[%clk 0:02:53]} 6. Qxe7+ {[%clk 0:02:54]}  Bxe7 {[%clk 0:02:54]} 7. Be2 {[%clk 0:02:54]}  c6 {[%clk 0:02:49]} 8. Nf3 {[%clk 0:02:53]}  Nf5 {[%clk 0:02:46]} 9. g4 {[%clk 0:02:53]}  Nh4 {[%clk 0:02:45]} 10. Nxh4 {[%clk 0:02:54]}  Bxh4 {[%clk 0:02:45]} 11. Ne4 {[%clk 0:02:54]}  Be7 {[%clk 0:02:14]} 12. d4 {[%clk 0:02:50]}  d5 {[%clk 0:02:14]} 13. Ng3 {[%clk 0:02:49]}  h6 {[%clk 0:01:48]} 14. f3 {[%clk 0:02:44]}  Bg5 {[%clk 0:01:48]} 15. Kf2 {[%clk 0:02:37]}  Bxc1 {[%clk 0:01:42]} 16. Raxc1 {[%clk 0:02:37]}  f6 {[%clk 0:01:42]} 17. Bd3 {[%clk 0:02:35]}  Kf7 {[%clk 0:01:39]} 18. h4 {[%clk 0:02:33]}  Nd7 {[%clk 0:01:16]} 19. Rce1 {[%clk 0:02:30]}  Rd8 {[%clk 0:01:13]} 20. Nf5 {[%clk 0:02:21]}  Rg8 {[%clk 0:00:54]} 21. Nd6+ {[%clk 0:02:10]}  Kf8 {[%clk 0:00:33]} 22. Re8# {[%clk 0:02:09]} 1-0


[Site "https://www.chess.com"]